[Event "*** SCC Grand Prix: Titled Tuesday Blitz"]
[Site "Chess.com"]
[Date "2020.09.29"]
[Round "5"]
[White "IvanSoriano1"]
[Black "leoduarte"]
[Result "0-1"]
[WhiteElo "2481"]
[BlackElo "2309"]
[TimeControl "180+1"]
[EndTime "10:56:24 PDT"]
[Termination "leoduarte won on time"]

1. g3 {[%clk 0:02:58.7]} 1... c5 {[%clk 0:02:55.7]} 2. Bg2 {[%clk 0:02:59.1]}
2... Nc6 {[%clk 0:02:55.5]} 3. c4 {[%clk 0:02:59.2]} 3... g6 {[%clk 0:02:54.1]}
4. Nf3 {[%clk 0:02:59.7]} 4... Bg7 {[%clk 0:02:54.1]} 5. O-O {[%clk 0:03:00.3]}
5... e6 {[%clk 0:02:54.3]} 6. d3 {[%clk 0:03:00.8]} 6... Nge7 {[%clk 0:02:52.9]}
7. Nc3 {[%clk 0:03:00.8]} 7... O-O {[%clk 0:02:51.2]} 8. Be3 {[%clk 0:03:00.7]}
8... b6 {[%clk 0:02:50.8]} 9. a3 {[%clk 0:02:59.6]} 9... Bb7 {[%clk 0:02:49.8]}
10. Rb1 {[%clk 0:02:59.3]} 10... d5 {[%clk 0:02:47.7]} 11. cxd5 {[%clk
0:02:59.2]} 11... exd5 {[%clk 0:02:48.6]} 12. Bg5 {[%clk 0:02:53]} 12... h6
{[%clk 0:02:45]} 13. Bf4 {[%clk 0:02:51.9]} 13... Qd7 {[%clk 0:02:03.6]} 14. Qc1
{[%clk 0:02:50.9]} 14... Kh7 {[%clk 0:02:02.1]} 15. Rd1 {[%clk 0:02:49.9]} 15...
Rac8 {[%clk 0:01:59]} 16. h4 {[%clk 0:02:45.9]} 16... Nd4 {[%clk 0:01:50.3]} 17.
Qd2 {[%clk 0:02:39.4]} 17... Rfe8 {[%clk 0:01:42.1]} 18. Kh2 {[%clk 0:02:30.9]}
18... Nef5 {[%clk 0:01:15.3]} 19. Re1 {[%clk 0:02:25.3]} 19... Nxf3+ {[%clk
0:01:11.3]} 20. Bxf3 {[%clk 0:02:24.1]} 20... Nd4 {[%clk 0:01:11.9]} 21. Bg2
{[%clk 0:02:22.4]} 21... Re7 {[%clk 0:00:49.1]} 22. Bh3 {[%clk 0:02:01.5]} 22...
f5 {[%clk 0:00:48.6]} 23. Bg2 {[%clk 0:01:59]} 23... Rce8 {[%clk 0:00:47]} 24.
b4 {[%clk 0:01:52]} 24... Ba8 {[%clk 0:00:38.3]} 25. bxc5 {[%clk 0:01:49.4]}
25... bxc5 {[%clk 0:00:38.5]} 26. Rb8 {[%clk 0:01:44.2]} 26... Ne6 {[%clk
0:00:38.6]} 27. Rxe8 {[%clk 0:01:43.9]} 27... Rxe8 {[%clk 0:00:38.4]} 28. Rc1
{[%clk 0:01:37.7]} 28... Nxf4 {[%clk 0:00:33]} 29. Qxf4 {[%clk 0:01:38.6]} 29...
d4 {[%clk 0:00:33.2]} 30. Nd1 {[%clk 0:01:34.3]} 30... Bxg2 {[%clk 0:00:32.1]}
31. Kxg2 {[%clk 0:01:35.2]} 31... Rxe2 {[%clk 0:00:29]} 32. Rxc5 {[%clk
0:01:32.1]} 32... Qb7+ {[%clk 0:00:28.2]} 33. Qf3 {[%clk 0:01:31.1]} 33... Qxf3+
{[%clk 0:00:24.6]} 34. Kxf3 {[%clk 0:01:32]} 34... Rd2 {[%clk 0:00:25]} 35. Rc1
{[%clk 0:01:32]} 35... Ra2 {[%clk 0:00:25.1]} 36. Rc7 {[%clk 0:01:24.5]} 36...
Rxa3 {[%clk 0:00:25.2]} 37. Ke2 {[%clk 0:01:23.3]} 37... Ra2+ {[%clk 0:00:25.6]}
38. Ke1 {[%clk 0:01:23.2]} 38... a5 {[%clk 0:00:25.8]} 39. Ra7 {[%clk
0:01:22.7]} 39... Kg8 {[%clk 0:00:20.6]} 40. Rb7 {[%clk 0:01:21.2]} 40... Bf8
{[%clk 0:00:20.2]} 41. Rb8 {[%clk 0:01:19.1]} 41... Kf7 {[%clk 0:00:19.8]} 42.
Rb7+ {[%clk 0:01:19]} 42... Ke6 {[%clk 0:00:18.9]} 43. Rb6+ {[%clk 0:01:10.7]}
43... Kd5 {[%clk 0:00:17]} 44. Rb2 {[%clk 0:01:11.6]} 44... Bb4+ {[%clk
0:00:13]} 45. Ke2 {[%clk 0:01:11.6]} 45... Ra1 {[%clk 0:00:12]} 46. f3 {[%clk
0:01:08.8]} 46... Kc6 {[%clk 0:00:11.7]} 47. g4 {[%clk 0:01:07.8]} 47... fxg4
{[%clk 0:00:11.8]} 48. fxg4 {[%clk 0:01:08.7]} 48... Kb5 {[%clk 0:00:12.5]} 49.
Nf2 {[%clk 0:00:44.6]} 49... a4 {[%clk 0:00:10.1]} 50. Ne4 {[%clk 0:00:43.4]}
50... a3 {[%clk 0:00:10]} 51. Rc2 {[%clk 0:00:42.7]} 51... Ka4 {[%clk
0:00:08.4]} 52. Rc4 {[%clk 0:00:26.5]} 52... a2 {[%clk 0:00:05.2]} 53. Nc5+
{[%clk 0:00:26.5]} 53... Ka3 {[%clk 0:00:04.7]} 54. Na6 {[%clk 0:00:20]} 54...
Re1+ {[%clk 0:00:04.5]} 55. Kf2 {[%clk 0:00:20.6]} 55... a1=Q {[%clk 0:00:04.5]}
56. Nxb4 {[%clk 0:00:21.1]} 56... Rf1+ {[%clk 0:00:04.7]} 57. Kg3 {[%clk
0:00:07]} 57... Rg1+ {[%clk 0:00:05.6]} 58. Kf4 {[%clk 0:00:07.1]} 58... Qf1+
{[%clk 0:00:06]} 59. Ke5 {[%clk 0:00:08]} 59... Qe2+ {[%clk 0:00:05.3]} 0-1

[Event "*** SCC Grand Prix: Titled Tuesday Blitz"]
[Site "Chess.com"]
[Date "2020.09.29"]
[Round "5"]
[White "killer311"]
[Black "pirulillo"]
[Result "1-0"]
[WhiteElo "2449"]
[BlackElo "2229"]
[TimeControl "180+1"]
[EndTime "10:56:26 PDT"]
[Termination "killer311 won by resignation"]

1. d4 {[%clk 0:03:00.9]} 1... Nf6 {[%clk 0:02:09.9]} 2. c4 {[%clk 0:02:59.9]}
2... g6 {[%clk 0:02:09.6]} 3. g3 {[%clk 0:02:59.8]} 3... Bg7 {[%clk 0:02:10.5]}
4. Bg2 {[%clk 0:02:59.3]} 4... O-O {[%clk 0:02:11.4]} 5. Nf3 {[%clk 0:02:58.4]}
5... d6 {[%clk 0:02:12.3]} 6. Nc3 {[%clk 0:02:57.9]} 6... c6 {[%clk 0:02:12.2]}
7. O-O {[%clk 0:02:56.7]} 7... Qa5 {[%clk 0:02:12.7]} 8. e4 {[%clk 0:02:55.3]}
8... e5 {[%clk 0:02:12.3]} 9. d5 {[%clk 0:02:53.3]} 9... cxd5 {[%clk 0:02:12.1]}
10. cxd5 {[%clk 0:02:52.6]} 10... Bd7 {[%clk 0:02:12.6]} 11. Bd2 {[%clk
0:02:49]} 11... Rc8 {[%clk 0:02:11.8]} 12. Rc1 {[%clk 0:02:47.9]} 12... b5
{[%clk 0:02:03.7]} 13. Qe2 {[%clk 0:02:39.2]} 13... a6 {[%clk 0:01:57.8]} 14. a3
{[%clk 0:02:38.2]} 14... Qb6 {[%clk 0:01:56.1]} 15. Be3 {[%clk 0:02:36.1]} 15...
Qb7 {[%clk 0:01:56.1]} 16. h3 {[%clk 0:02:34.5]} 16... a5 {[%clk 0:01:55.7]} 17.
Rfd1 {[%clk 0:02:28.9]} 17... b4 {[%clk 0:01:52.1]} 18. Na2 {[%clk 0:02:27.5]}
18... Rxc1 {[%clk 0:01:46.3]} 19. Rxc1 {[%clk 0:02:26.4]} 19... Nxe4 {[%clk
0:01:41.6]} 20. Nxe5 {[%clk 0:02:04.2]} 20... Bxe5 {[%clk 0:01:40.3]} 21. Bxe4
{[%clk 0:02:03.9]} 21... Bxh3 {[%clk 0:01:20.8]} 22. Kh2 {[%clk 0:01:57.4]}
22... Bd7 {[%clk 0:01:18.6]} 23. Qd2 {[%clk 0:01:44.4]} 23... Na6 {[%clk
0:01:16.7]} 24. axb4 {[%clk 0:01:40.6]} 24... axb4 {[%clk 0:01:14.7]} 25. Bd4
{[%clk 0:01:37.9]} 25... Bxd4 {[%clk 0:01:00.9]} 26. Qxd4 {[%clk 0:01:38.8]}
26... Qa7 {[%clk 0:00:59.7]} 27. Qxa7 {[%clk 0:01:30.4]} 27... Rxa7 {[%clk
0:01:00.6]} 28. Bd3 {[%clk 0:01:27.1]} 28... Nc5 {[%clk 0:00:54.1]} 29. Bb1
{[%clk 0:01:20.6]} 29... Rb7 {[%clk 0:00:49.2]} 30. Kg2 {[%clk 0:01:19.6]} 30...
Kg7 {[%clk 0:00:34.2]} 31. Rc4 {[%clk 0:01:19]} 31... b3 {[%clk 0:00:32.4]} 32.
Nc3 {[%clk 0:01:15.2]} 32... h5 {[%clk 0:00:27.9]} 33. Rd4 {[%clk 0:01:12.7]}
33... Ra7 {[%clk 0:00:22]} 34. Bd3 {[%clk 0:01:12.4]} 34... Ra1 {[%clk
0:00:20.4]} 35. Bc4 {[%clk 0:01:08.9]} 35... g5 {[%clk 0:00:20.4]} 36. Ne4
{[%clk 0:01:00]} 36... Nxe4 {[%clk 0:00:19.6]} 37. Rxe4 {[%clk 0:01:00.9]} 37...
Rb1 {[%clk 0:00:19.9]} 38. Re2 {[%clk 0:00:59.2]} 38... Ba4 {[%clk 0:00:20]} 39.
Kf3 {[%clk 0:00:57.2]} 39... Rc1 {[%clk 0:00:20.2]} 40. Bd3 {[%clk 0:00:55.2]}
40... Rc5 {[%clk 0:00:19.9]} 41. Be4 {[%clk 0:00:54.4]} 41... Kf6 {[%clk
0:00:18.5]} 42. Ke3 {[%clk 0:00:54.1]} 42... Bb5 {[%clk 0:00:18.6]} 43. Rd2
{[%clk 0:00:51]} 43... Bc4 {[%clk 0:00:18.9]} 44. Kd4 {[%clk 0:00:50.3]} 44...
h4 {[%clk 0:00:18.7]} 45. gxh4 {[%clk 0:00:49]} 45... gxh4 {[%clk 0:00:19.6]}
46. f4 {[%clk 0:00:49.7]} 46... Ba6 {[%clk 0:00:13.7]} 47. Rh2 {[%clk
0:00:48.6]} 47... Bc8 {[%clk 0:00:12.5]} 48. Rxh4 {[%clk 0:00:47.4]} 48... Bf5
{[%clk 0:00:12.7]} 49. Rh6+ {[%clk 0:00:45]} 49... Bg6 {[%clk 0:00:13.2]} 50. f5
{[%clk 0:00:41.3]} 50... Kg7 {[%clk 0:00:13.3]} 51. Rh3 {[%clk 0:00:39.3]} 51...
Bh7 {[%clk 0:00:13.4]} 52. f6+ {[%clk 0:00:38.8]} 52... Kxf6 {[%clk 0:00:12.9]}
53. Rxh7 {[%clk 0:00:39.2]} 53... Ke7 {[%clk 0:00:11.4]} 54. Rh3 {[%clk
0:00:38.9]} 54... Rb5 {[%clk 0:00:11.3]} 55. Kc4 {[%clk 0:00:37.3]} 55... Rb8
{[%clk 0:00:11]} 56. Rxb3 {[%clk 0:00:36.7]} 56... Rc8+ {[%clk 0:00:10.4]} 57.
Kd4 {[%clk 0:00:36.8]} 57... Kf6 {[%clk 0:00:11.3]} 58. Rf3+ {[%clk 0:00:36.2]}
58... Kg5 {[%clk 0:00:12.2]} 59. Rxf7 {[%clk 0:00:35.2]} 59... Rb8 {[%clk
0:00:13.1]} 60. Kc3 {[%clk 0:00:34.4]} 60... Rc8+ {[%clk 0:00:13.4]} 61. Kd2
{[%clk 0:00:34.2]} 61... Rb8 {[%clk 0:00:13.7]} 62. Kc2 {[%clk 0:00:34.2]} 62...
Rc8+ {[%clk 0:00:13.2]} 63. Kb1 {[%clk 0:00:34.4]} 63... Rb8 {[%clk 0:00:13.7]}
64. Rf2 {[%clk 0:00:33.5]} 64... Kg4 {[%clk 0:00:13]} 65. Kc2 {[%clk 0:00:33.3]}
65... Kg3 {[%clk 0:00:13]} 66. Rf6 {[%clk 0:00:33.3]} 66... Kg4 {[%clk
0:00:13.2]} 67. Rxd6 {[%clk 0:00:33.2]} 67... Rc8+ {[%clk 0:00:14.1]} 68. Rc6
{[%clk 0:00:32.9]} 68... Kf4 {[%clk 0:00:15]} 69. Rxc8 {[%clk 0:00:32.3]} 1-0

[Event "*** SCC Grand Prix: Titled Tuesday Blitz"]
[Site "Chess.com"]
[Date "2020.09.29"]
[Round "5"]
[White "Ermito2020"]
[Black "Bigfish1995"]
[Result "0-1"]
[WhiteElo "2677"]
[BlackElo "3102"]
[TimeControl "180+1"]
[EndTime "10:56:27 PDT"]
[Termination "Bigfish1995 won on time"]

1. e4 {[%clk 0:03:00.9]} 1... c5 {[%clk 0:02:59.7]} 2. Nf3 {[%clk 0:03:00.5]}
2... d6 {[%clk 0:03:00]} 3. d4 {[%clk 0:03:01.1]} 3... cxd4 {[%clk 0:03:00.5]}
4. Nxd4 {[%clk 0:03:01.7]} 4... Nf6 {[%clk 0:03:01.1]} 5. Nc3 {[%clk 0:03:02]}
5... a6 {[%clk 0:03:01.8]} 6. Nb3 {[%clk 0:03:02.6]} 6... Nc6 {[%clk 0:02:48.7]}
7. Be2 {[%clk 0:02:58.3]} 7... g6 {[%clk 0:02:47.7]} 8. Be3 {[%clk 0:02:56]}
8... h5 {[%clk 0:02:47]} 9. h3 {[%clk 0:02:33.4]} 9... Bg7 {[%clk 0:02:46.4]}
10. Qd2 {[%clk 0:02:33.1]} 10... Bd7 {[%clk 0:02:45.6]} 11. O-O-O {[%clk
0:02:31.1]} 11... b5 {[%clk 0:02:44.1]} 12. a3 {[%clk 0:02:16.7]} 12... Rc8
{[%clk 0:02:38.1]} 13. Kb1 {[%clk 0:02:15.2]} 13... Ne5 {[%clk 0:02:36.1]} 14.
f4 {[%clk 0:02:10.1]} 14... Nc4 {[%clk 0:02:09.2]} 15. Bxc4 {[%clk 0:02:09.7]}
15... bxc4 {[%clk 0:02:10.1]} 16. Nd4 {[%clk 0:02:09]} 16... Qc7 {[%clk
0:02:10.7]} 17. Ka1 {[%clk 0:02:07.5]} 17... Rb8 {[%clk 0:02:09]} 18. Rb1 {[%clk
0:02:07.1]} 18... e5 {[%clk 0:01:48.5]} 19. Nde2 {[%clk 0:01:47.2]} 19... Bc6
{[%clk 0:01:46.7]} 20. fxe5 {[%clk 0:01:42.4]} 20... dxe5 {[%clk 0:01:46.8]} 21.
Bc5 {[%clk 0:01:35.9]} 21... Rd8 {[%clk 0:01:24.4]} 22. Qe3 {[%clk 0:01:35.7]}
22... Bh6 {[%clk 0:01:24.4]} 23. Qf2 {[%clk 0:01:35.9]} 23... Nd7 {[%clk
0:01:11.3]} 24. Rhf1 {[%clk 0:01:35.4]} 24... f6 {[%clk 0:01:03.1]} 25. Rbd1
{[%clk 0:01:26.9]} 25... Qb7 {[%clk 0:00:40.6]} 26. Rd6 {[%clk 0:01:03.8]} 26...
O-O {[%clk 0:00:40.6]} 27. Rxc6 {[%clk 0:00:54.5]} 27... Qxc6 {[%clk 0:00:40.8]}
28. Bxf8 {[%clk 0:00:54.9]} 28... Bxf8 {[%clk 0:00:41.6]} 29. Nd5 {[%clk
0:00:54.5]} 29... Kg7 {[%clk 0:00:42.3]} 30. Nec3 {[%clk 0:00:53.1]} 30... Bc5
{[%clk 0:00:41.3]} 31. Qf3 {[%clk 0:00:51.7]} 31... Rb8 {[%clk 0:00:40.1]} 32.
g4 {[%clk 0:00:46]} 32... hxg4 {[%clk 0:00:39.2]} 33. Qxg4 {[%clk 0:00:43.2]}
33... Qd6 {[%clk 0:00:27.7]} 34. Ka2 {[%clk 0:00:39.3]} 34... Bd4 {[%clk
0:00:26.8]} 35. h4 {[%clk 0:00:31.4]} 35... Rh8 {[%clk 0:00:26.4]} 36. Rf3
{[%clk 0:00:22.6]} 36... Rh6 {[%clk 0:00:18.8]} 37. Rg3 {[%clk 0:00:22.1]} 37...
Bf2 {[%clk 0:00:18.6]} 38. Rh3 {[%clk 0:00:17.7]} 38... Kf7 {[%clk 0:00:17.2]}
39. h5 {[%clk 0:00:17.4]} 39... g5 {[%clk 0:00:17.3]} 40. Rf3 {[%clk 0:00:17.2]}
40... Bh4 {[%clk 0:00:15.2]} 41. Rf1 {[%clk 0:00:14.3]} 41... Qe6 {[%clk
0:00:14.6]} 42. Qe2 {[%clk 0:00:12.2]} 42... Qc6 {[%clk 0:00:13.4]} 43. Rd1
{[%clk 0:00:11.3]} 43... Nf8 {[%clk 0:00:10.2]} 44. Nb4 {[%clk 0:00:10.9]} 44...
Qe6 {[%clk 0:00:09.8]} 45. Qd2 {[%clk 0:00:10.6]} 45... Rxh5 {[%clk 0:00:09.5]}
46. Qd8 {[%clk 0:00:10.7]} 46... Rh8 {[%clk 0:00:08.5]} 47. Qc7+ {[%clk
0:00:09.2]} 47... Kg6 {[%clk 0:00:08.2]} 48. Nbd5 {[%clk 0:00:08.3]} 48... Qf7
{[%clk 0:00:08]} 49. Ne7+ {[%clk 0:00:08.2]} 49... Kh5 {[%clk 0:00:06.4]} 50.
Qd6 {[%clk 0:00:07.5]} 50... Ng6 {[%clk 0:00:05.4]} 51. Nf5 {[%clk 0:00:07.1]}
51... Nf4 {[%clk 0:00:05.6]} 52. Qd2 {[%clk 0:00:05.7]} 52... Kg6 {[%clk
0:00:05.2]} 53. Rg1 {[%clk 0:00:05.2]} 53... Qb7 {[%clk 0:00:04.6]} 54. Nd6
{[%clk 0:00:03.5]} 54... Qd7 {[%clk 0:00:04.2]} 55. Nxc4 {[%clk 0:00:03.2]}
55... Qxd2 {[%clk 0:00:03.9]} 56. Nxd2 {[%clk 0:00:04.1]} 56... Bf2 {[%clk
0:00:04.5]} 57. Rf1 {[%clk 0:00:03.7]} 57... Be3 {[%clk 0:00:05.1]} 58. Nc4
{[%clk 0:00:04]} 58... Bd4 {[%clk 0:00:05.5]} 59. Nd5 {[%clk 0:00:04.6]} 59...
Nxd5 {[%clk 0:00:05.6]} 60. exd5 {[%clk 0:00:05.1]} 60... g4 {[%clk 0:00:06.5]}
61. c3 {[%clk 0:00:05.4]} 61... Ba7 {[%clk 0:00:06.4]} 62. d6 {[%clk 0:00:05.4]}
62... g3 {[%clk 0:00:06.8]} 63. d7 {[%clk 0:00:05.3]} 63... g2 {[%clk
0:00:07.3]} 64. Rd1 {[%clk 0:00:05.4]} 64... Rd8 {[%clk 0:00:07.8]} 65. Na5
{[%clk 0:00:02.2]} 65... g1=Q {[%clk 0:00:08.2]} 66. Rxg1+ {[%clk 0:00:01.8]}
66... Bxg1 {[%clk 0:00:09.1]} 67. Nc6 {[%clk 0:00:01.5]} 67... Rxd7 {[%clk
0:00:10]} 68. b4 {[%clk 0:00:01.3]} 68... Rc7 {[%clk 0:00:10.3]} 0-1

[Event "*** SCC Grand Prix: Titled Tuesday Blitz"]
[Site "Chess.com"]
[Date "2020.09.29"]
[Round "5"]
[White "Harry_Rakkel"]
[Black "goldenpuppy"]
[Result "1-0"]
[WhiteElo "2573"]
[BlackElo "2383"]
[TimeControl "180+1"]
[EndTime "10:56:27 PDT"]
[Termination "Harry_Rakkel won on time"]

1. d4 {[%clk 0:03:00.9]} 1... Nf6 {[%clk 0:02:50.6]} 2. Nf3 {[%clk 0:02:59.6]}
2... e6 {[%clk 0:02:50.8]} 3. Bf4 {[%clk 0:02:56.6]} 3... c5 {[%clk 0:02:50.3]}
4. c3 {[%clk 0:02:56.2]} 4... d5 {[%clk 0:02:50.5]} 5. Nbd2 {[%clk 0:02:54.9]}
5... Nc6 {[%clk 0:02:50.7]} 6. e3 {[%clk 0:02:54.2]} 6... Bd6 {[%clk 0:02:50.9]}
7. Bg3 {[%clk 0:02:54.7]} 7... O-O {[%clk 0:02:50.4]} 8. Bd3 {[%clk 0:02:54.4]}
8... b6 {[%clk 0:02:50.5]} 9. Qe2 {[%clk 0:02:53.3]} 9... Bb7 {[%clk 0:02:50]}
10. O-O {[%clk 0:02:53.2]} 10... Qc7 {[%clk 0:02:46]} 11. dxc5 {[%clk
0:02:48.9]} 11... bxc5 {[%clk 0:02:45.4]} 12. e4 {[%clk 0:02:49.3]} 12... Bxg3
{[%clk 0:02:36.3]} 13. hxg3 {[%clk 0:02:48.3]} 13... h6 {[%clk 0:02:29.6]} 14.
Rad1 {[%clk 0:02:44.3]} 14... Rad8 {[%clk 0:02:27.2]} 15. Rfe1 {[%clk
0:02:43.9]} 15... d4 {[%clk 0:02:23.2]} 16. e5 {[%clk 0:02:39.4]} 16... Nh7
{[%clk 0:02:14]} 17. cxd4 {[%clk 0:02:08]} 17... Nxd4 {[%clk 0:02:13.2]} 18.
Nxd4 {[%clk 0:02:07.6]} 18... Rxd4 {[%clk 0:02:12.7]} 19. Nb3 {[%clk 0:02:07.4]}
19... Qc6 {[%clk 0:02:08.6]} 20. f3 {[%clk 0:01:44.4]} 20... Rxd3 {[%clk
0:02:04.6]} 21. Rxd3 {[%clk 0:01:43.9]} 21... c4 {[%clk 0:02:04]} 22. Rd6 {[%clk
0:01:43]} 22... Qa4 {[%clk 0:01:49.4]} 23. Nc5 {[%clk 0:01:39.7]} 23... Qb4
{[%clk 0:01:47.1]} 24. a3 {[%clk 0:01:34.8]} 24... Qxc5+ {[%clk 0:01:46.4]} 25.
Qe3 {[%clk 0:01:30.9]} 25... Qb5 {[%clk 0:01:44.9]} 26. Qd4 {[%clk 0:01:27.1]}
26... Bd5 {[%clk 0:01:44]} 27. Kh2 {[%clk 0:01:23.3]} 27... Qa5 {[%clk
0:01:42.1]} 28. Re2 {[%clk 0:01:22.9]} 28... Rb8 {[%clk 0:01:40.7]} 29. Rd7
{[%clk 0:01:22.2]} 29... a6 {[%clk 0:01:38.9]} 30. Qa7 {[%clk 0:01:20.6]} 30...
Rf8 {[%clk 0:01:37.4]} 31. Rd6 {[%clk 0:01:18.1]} 31... Ra8 {[%clk 0:01:29.5]}
32. Qe7 {[%clk 0:01:16.4]} 32... Ng5 {[%clk 0:01:26.4]} 33. Rd7 {[%clk
0:01:04.4]} 33... Rf8 {[%clk 0:01:25.2]} 34. Ra7 {[%clk 0:00:56.2]} 34... Qb5
{[%clk 0:01:24.4]} 35. Qb4 {[%clk 0:00:55.4]} 35... Qc6 {[%clk 0:01:20.8]} 36.
Qd6 {[%clk 0:00:53.7]} 36... Bxf3 {[%clk 0:01:04.9]} 37. gxf3 {[%clk 0:00:48.5]}
37... Qxf3 {[%clk 0:00:46.4]} 38. Rd2 {[%clk 0:00:47.2]} 38... Qh5+ {[%clk
0:00:41.7]} 39. Kg2 {[%clk 0:00:45.9]} 39... Qh3+ {[%clk 0:00:41.8]} 40. Kg1
{[%clk 0:00:42.9]} 40... Qxg3+ {[%clk 0:00:40.9]} 41. Kf1 {[%clk 0:00:42.5]}
41... Nf3 {[%clk 0:00:36.2]} 42. Qxf8+ {[%clk 0:00:39.5]} 42... Kh7 {[%clk
0:00:34.8]} 43. Qxf7 {[%clk 0:00:35.8]} 43... Nxd2+ {[%clk 0:00:31.2]} 44. Ke2
{[%clk 0:00:34.9]} 44... Qd3+ {[%clk 0:00:30.4]} 45. Ke1 {[%clk 0:00:34.1]}
45... Qe3+ {[%clk 0:00:27.8]} 46. Kd1 {[%clk 0:00:33.9]} 46... Qg5 {[%clk
0:00:24.1]} 47. Qxe6 {[%clk 0:00:20.4]} 47... Ne4 {[%clk 0:00:23.5]} 48. Qd5
{[%clk 0:00:17.7]} 48... Qg4+ {[%clk 0:00:20.4]} 49. Kc2 {[%clk 0:00:15.5]}
49... c3 {[%clk 0:00:20.7]} 50. Qd3 {[%clk 0:00:14.6]} 50... cxb2 {[%clk
0:00:19.6]} 51. Kxb2 {[%clk 0:00:13.8]} 51... Qf5 {[%clk 0:00:18.9]} 52. Rb7
{[%clk 0:00:10.5]} 52... Qxe5+ {[%clk 0:00:19.1]} 53. Ka2 {[%clk 0:00:09.8]}
53... h5 {[%clk 0:00:18.7]} 54. Rb3 {[%clk 0:00:09.5]} 54... g6 {[%clk
0:00:18.2]} 55. a4 {[%clk 0:00:09.6]} 55... Kh6 {[%clk 0:00:18.2]} 56. Qe3+
{[%clk 0:00:09.7]} 56... Kh7 {[%clk 0:00:15.9]} 57. Rb7+ {[%clk 0:00:09.8]}
57... Kg8 {[%clk 0:00:15.4]} 58. Qb3+ {[%clk 0:00:09]} 58... Kh8 {[%clk
0:00:13.3]} 59. Rd7 {[%clk 0:00:06.1]} 59... Nc3+ {[%clk 0:00:12.3]} 60. Ka3
{[%clk 0:00:05.6]} 60... Qc5+ {[%clk 0:00:11.7]} 61. Kb2 {[%clk 0:00:05.8]}
61... Nxa4+ {[%clk 0:00:03.6]} 62. Qxa4 {[%clk 0:00:05.3]} 62... Qf2+ {[%clk
0:00:03.6]} 63. Kc3 {[%clk 0:00:05.6]} 63... Qe3+ {[%clk 0:00:02.7]} 64. Kc4
{[%clk 0:00:05.9]} 64... Qe6+ {[%clk 0:00:01.3]} 65. Kc5 {[%clk 0:00:05.4]} 1-0